bitfinex-derivatives/quotes_BNBF0:USTF0_20250807
["timestamp","ask_amount","ask_price","bid_price","bid_amount"]
[1754582467104,1.28626632,775.85,775.36,0.85937429]
[1754582467409,0.859857,775.84,775.36,0.85937429]
[1754582467604,0.859857,775.83,775.36,0.85937429]
[1754582467804,0.859857,775.82,775.36,0.85937429]
[1754582468104,0.859857,775.81,775.36,0.85937429]
[1754582468304,0.859857,775.8,775.36,0.85937429]
[1754582468600,0.86865477,775.97,775.36,0.85937429]
[1754582468804,2.15551481,775.96,775.36,0.85937429]
[1754582469004,1.28686004,775.95,775.36,0.85937429]
[1754582469201,1.28686004,775.94,775.37,0.85937429]
[1754582469401,1.28686004,775.93,775.37,0.85937429]
[1754582469605,1.28686004,775.92,775.37,0.85937429]
[1754582469802,1.28685703,775.91,775.37,0.85937429]
[1754582470005,1.28685703,775.9,775.37,0.85937429]
[1754582470205,1.28685703,775.89,775.37,0.85937429]
[1754582470402,1.28685703,775.88,775.36,0.85937429]
[1754582470607,1.28685703,775.87,775.36,0.85937429]
[1754582470810,1.28685703,775.86,775.36,0.85937429]
[1754582471011,1.28685703,775.85,775.36,0.85937429]
[1754582471212,0.86044528,775.84,775.36,0.85937429]
[1754582471511,0.86044528,775.83,775.36,0.85937429]
[1754582471712,0.86044528,775.82,775.36,0.85937429]
[1754582471913,0.86044528,775.81,775.37,0.85937429]
[1754582472209,0.86044528,775.8,775.36,0.85937429]
[1754582472411,0.86865477,775.96,775.36,0.85937429]
[1754582472609,1.28715093,775.95,775.36,0.85937429]
[1754582472808,0.86043629,775.94,775.36,0.85937429]
[1754582473010,1.28715093,775.93,775.36,0.85937429]
[1754582473213,1.28715093,775.92,775.37,0.85937429]
[1754582473412,1.2871461,775.91,775.37,0.85937429]
[1754582473611,1.2871461,775.9,775.34,0.85937429]
[1754582473909,1.2871461,775.89,775.34,0.85937429]
[1754582474110,1.2871461,775.88,775.34,0.85937429]
[1754582474314,1.2871461,775.87,775.34,0.85937429]
[1754582474511,2.15580087,775.86,775.25,0.85937429]
[1754582474810,1.2871461,775.85,775.25,0.85937429]
[1754582475015,1.2871461,775.84,775.25,0.85937429]
[1754582475216,0.86043306,775.83,775.23,0.85937429]
[1754582475515,0.86043306,775.82,775.2,0.85937429]
[1754582475715,0.86043306,775.81,775.2,0.85937429]
[1754582475915,0.86865477,775.88,775.2,0.85937429]
[1754582476115,1.28711643,775.87,775.2,0.85937429]
[1754582476311,1.28711643,775.86,775.19,0.85937429]
[1754582476513,0.8604131,775.85,775.19,0.85937429]
[1754582476809,0.8604131,775.84,775.19,0.85937429]
[1754582477013,0.8604131,775.83,775.2,0.85937429]
[1754582477213,0.8604131,775.82,775.2,0.85937429]
[1754582477413,0.8604131,775.81,775.19,0.85937429]
[1754582477618,0.86865477,775.89,775.19,0.85937429]
[1754582477913,1.28706709,775.88,775.19,0.85937429]
[1754582478112,1.28706709,775.87,775.19,0.85937429]
[1754582478314,1.28706709,775.86,775.19,0.85937429]
[1754582478613,1.28706709,775.85,775.19,0.85937429]
[1754582478912,1.28706709,775.84,775.19,0.85937429]
[1754582479117,1.28706709,775.83,775.16,0.85937429]
[1754582479318,1.28706709,775.82,775.16,0.85937429]
[1754582479616,1.28706709,775.82,775.0,1.144492]
[1754582479617,1.28706709,775.81,775.17,0.85937429]
[1754582479817,1.28706709,775.8,775.17,0.85937429]
[1754582480013,1.28706709,775.79,775.16,0.85937429]
[1754582480217,1.28706709,775.78,775.16,0.85937429]
[1754582480517,1.28706709,775.77,775.16,0.85937429]
[1754582480717,1.28706709,775.76,775.16,0.85937429]
[1754582480917,1.28706709,775.75,775.14,0.85937429]
[1754582481112,0.86038012,775.74,775.14,0.85937429]
[1754582481313,0.86038012,775.73,775.05,0.85937429]
[1754582481513,0.86038012,775.72,775.05,0.85937429]
[1754582481717,0.86038012,775.71,775.05,0.85937429]
[1754582481917,0.86028894,775.7,775.05,0.85937429]
[1754582482117,1.28693526,775.69,775.05,0.85937429]
[1754582482318,1.28693526,775.68,775.05,0.85937429]
[1754582482512,1.28679811,775.67,775.05,0.85937429]
[1754582482819,1.28679811,775.66,775.05,0.85937429]
[1754582483012,0.86028894,775.65,775.04,0.85937429]
[1754582483214,0.86028894,775.64,775.04,0.85937429]
[1754582483417,0.86028894,775.63,775.04,0.85937429]
[1754582483617,0.86028894,775.62,775.04,0.85937429]
[1754582483814,0.86865477,775.83,775.04,0.85937429]
[1754582484017,1.28617737,775.82,775.04,0.85937429]
[1754582484214,1.28617737,775.81,775.04,0.85937429]
[1754582484413,1.28617737,775.8,775.03,0.85937429]
[1754582484618,1.28617737,775.79,775.06,0.85937429]
[1754582484814,1.28617737,775.78,775.06,0.85937429]
[1754582485017,1.28617737,775.77,775.06,0.85937429]
[1754582485213,1.28617737,775.76,775.06,0.85937429]
[1754582485415,1.28617737,775.75,775.05,0.85937429]
[1754582485715,1.28617737,775.74,775.05,0.85937429]
[1754582485917,1.28617737,775.73,775.05,0.85937429]
[1754582486116,0.86865477,775.86,775.05,0.85937429]
[1754582486117,1.28617737,775.72,775.05,0.85937429]
[1754582486413,0.86865477,775.86,775.05,0.85937429]
[1754582486414,1.28589076,775.71,775.05,0.85937429]
[1754582486613,0.85978228,775.7,775.05,0.85937429]
[1754582486815,0.85978228,775.69,775.05,0.85937429]
[1754582487018,0.85978228,775.68,775.06,0.85937429]
[1754582487213,0.85920542,775.67,775.05,0.85937429]
[1754582487415,0.86865477,775.87,775.04,0.85937429]
[1754582487614,1.28509206,775.86,775.04,0.85937429]
[1754582487817,1.28509206,775.85,775.04,0.85937429]
[1754582488013,1.28509206,775.84,775.04,0.85937429]
[1754582488218,1.28509206,775.83,775.04,0.85937429]
[1754582488415,1.28509206,775.82,775.03,0.85937429]
[1754582488615,0.86865477,775.89,775.03,0.85937429]
[1754582488616,1.28509206,775.81,775.03,0.85937429]
[1754582488821,1.28509206,775.8,775.03,0.85937429]
[1754582489117,1.28509206,775.79,775.03,0.85937429]
[1754582489419,1.28509206,775.78,775.02,0.85937429]
[1754582489615,1.28509206,775.77,775.02,0.85937429]
[1754582489817,1.28509206,775.76,775.02,0.85937429]
[1754582490120,1.28509206,775.75,775.02,0.85937429]
[1754582490418,0.85905713,775.74,775.02,0.85937429]
[1754582490616,0.85905713,775.73,775.02,0.85937429]
[1754582490815,0.85905713,775.73,775.03,0.85937429]
[1754582491019,0.85867157,775.72,775.03,0.85937429]
[1754582491219,0.85867157,775.71,775.03,0.85937429]
[1754582491420,0.85867157,775.7,775.04,0.85937429]
[1754582491617,0.86865477,775.89,775.04,0.85937429]
[1754582491816,1.28433238,775.88,775.04,0.85937429]
[1754582492018,1.28433238,775.87,775.04,0.85937429]
[1754582492218,1.28433238,775.86,775.03,0.85937429]
[1754582492419,1.28433238,775.85,775.03,0.85937429]
[1754582492625,1.28433238,775.84,775.03,0.85937429]
[1754582492919,1.28433238,775.83,775.04,0.85937429]
[1754582493117,1.28433238,775.82,775.04,0.85937429]
[1754582493317,1.28433238,775.81,775.03,0.85937429]
[1754582493517,0.86865477,775.89,775.03,0.85937429]
[1754582493518,1.28433238,775.8,775.03,0.85937429]
[1754582493721,1.28433238,775.79,775.03,0.85937429]
[1754582494023,1.28416259,775.78,775.03,0.85937429]
[1754582494221,1.28416259,775.77,775.03,0.85937429]
[1754582494420,1.28416259,775.76,775.03,0.85937429]
[1754582494620,1.28416259,775.75,775.03,0.85937429]
[1754582494819,0.85837965,775.74,775.03,0.85937429]
[1754582495120,0.85837965,775.73,775.03,0.85937429]
[1754582495424,0.85837965,775.73,774.7,1.716739]
[1754582495425,0.85837965,775.72,775.02,0.85937429]
[1754582495620,0.85837965,775.71,775.03,0.85937429]
[1754582495924,0.86865477,775.92,775.01,0.85937429]
[1754582496121,2.15255989,775.91,775.01,0.85937429]
[1754582496422,1.28390512,775.9,775.01,0.85937429]
[1754582496622,1.28390512,775.89,775.01,0.85937429]
[1754582496825,1.28390512,775.88,775.01,0.85937429]
[1754582497123,1.28390512,775.87,775.01,0.85937429]
[1754582497321,1.28390512,775.86,775.01,0.85937429]
[1754582497525,1.28390512,775.85,775.01,0.85937429]
[1754582497727,1.28390512,775.84,775.0,0.85937429]
[1754582497927,1.28390512,775.83,775.0,0.85937429]
[1754582498222,1.28390512,775.82,775.01,0.85937429]
[1754582498428,1.28390512,775.81,775.01,0.85937429]
[1754582498727,1.28390512,775.8,775.02,0.85937429]
[1754582499028,1.28390512,775.79,775.02,0.85937429]
[1754582499224,1.28390512,775.78,775.02,0.85937429]
[1754582499528,1.28390512,775.77,775.02,0.85937429]
[1754582499823,0.85717668,775.76,775.02,0.85937429]
[1754582500028,0.85717668,775.75,775.02,0.85937429]
[1754582500229,0.85715331,775.74,775.02,0.85937429]
[1754582500430,0.85715331,775.73,775.02,0.85937429]
[1754582500730,0.85715331,775.72,775.02,0.85937429]
[1754582500928,0.85715331,775.71,775.02,0.85937429]
[1754582501130,0.86865477,775.9,775.03,0.85937429]
[1754582501331,0.86865477,775.9,774.86,1.144492]
[1754582501332,1.2827123,775.89,775.04,0.85937429]
[1754582501526,1.2827123,775.88,775.04,0.85937429]
[1754582501727,1.2827123,775.87,775.04,0.85937429]
[1754582502031,1.2827123,775.87,774.87,1.144492]
[1754582502032,0.8571286,775.86,774.97,0.85937429]
[1754582502225,1.122,775.99,775.04,0.85937429]
[1754582502427,1.28264635,775.98,775.04,0.85937429]
[1754582502626,1.28264635,775.97,775.04,0.85937429]
[1754582502831,1.28265343,775.96,775.03,0.85937429]
[1754582503027,1.28265343,775.95,775.04,0.85937429]
[1754582503230,1.28265343,775.94,775.04,0.85937429]
[1754582503525,1.28265343,775.93,775.05,0.85937429]
[1754582503730,1.28265343,775.92,775.05,0.85937429]
[1754582503926,0.8570855,775.91,775.05,0.85937429]
[1754582504130,0.8570855,775.9,775.05,0.85937429]
[1754582504426,1.122,775.99,775.06,0.85937429]
[1754582504427,0.8570855,775.89,775.06,0.85937429]
[1754582504727,1.122,775.99,775.06,0.85937429]
[1754582504927,1.28271393,775.98,775.06,0.85937429]
[1754582505230,1.28271393,775.98,774.59,1.94105469]
[1754582505231,1.28271393,775.97,775.07,0.85937429]
[1754582505426,1.28271393,775.96,775.07,0.85937429]
[1754582505631,1.28271393,775.95,775.07,0.85937429]
[1754582505829,1.28271393,775.94,775.07,0.85937429]
[1754582506032,1.28271393,775.94,774.84,1.144492]
[1754582506033,0.85713106,775.93,775.08,0.85937429]
[1754582506228,0.85713106,775.92,775.08,0.85937429]
[1754582506527,0.85713106,775.91,775.08,0.85937429]
[1754582506726,0.85713106,775.9,775.08,0.85937429]
[1754582506931,0.85713106,775.89,775.08,0.85937429]
[1754582507128,0.85728138,775.88,775.08,0.85937429]
[1754582507333,1.122,775.99,775.08,0.85937429]
[1754582507533,1.28293889,775.98,775.08,0.85937429]
[1754582507828,1.28293889,775.97,775.08,0.85937429]
[1754582508132,1.28293889,775.96,775.08,0.85937429]
[1754582508332,1.28293889,775.95,775.09,0.85937429]
[1754582508533,1.28293889,775.94,775.09,0.85937429]
[1754582508728,1.2830235,775.93,775.09,0.85937429]
[1754582509035,0.85733792,775.92,775.09,0.85937429]
[1754582509228,0.85733792,775.91,775.09,0.85937429]
[1754582509428,0.85733792,775.9,775.1,0.85937429]
[1754582509729,0.85733792,775.89,775.1,0.85937429]
[1754582509927,0.85733792,775.88,775.1,0.85937429]
[1754582510132,0.85733792,775.87,775.16,0.85937429]
[1754582510332,0.85733792,775.86,775.17,0.85937429]
[1754582510533,0.85733792,775.85,775.24,0.85937429]
[1754582510730,1.122,775.99,775.25,0.85937429]
[1754582510930,1.198,775.84,775.25,0.85937429]
[1754582511434,1.198,775.84,774.59,0.22431569]
[1754582511435,1.198,775.84,775.24,0.85937429]
[1754582512532,1.198,775.84,775.06,1.144492]
[1754582512533,1.198,775.84,775.27,0.85937429]
[1754582512836,1.198,775.84,775.28,0.85937429]
[1754582513033,1.198,775.84,775.3,0.85937429]
[1754582513234,1.198,775.84,775.31,0.85937429]
[1754582515537,1.198,775.84,775.28,0.85937429]
[1754582515738,1.198,775.84,775.32,0.85937429]
[1754582516935,1.198,775.84,775.31,0.85937429]
[1754582518637,1.198,775.84,775.32,0.85937429]
[1754582519541,1.198,775.84,775.33,0.85937429]
[1754582519736,1.198,775.84,775.35,0.85937429]
[1754582520236,1.198,775.84,774.85,1.716739]
[1754582520237,1.198,775.84,775.37,0.85937429]
[1754582520637,1.198,775.84,775.38,0.85937429]
[1754582520944,1.198,775.84,775.39,0.85937429]
[1754582521137,1.198,775.84,775.4,0.85937429]
[1754582521640,1.198,775.84,775.39,0.85937429]
[1754582521836,1.198,775.84,775.38,0.85937429]
[1754582522036,1.198,775.84,775.4,0.85937429]
[1754582522339,1.198,775.84,775.39,0.85937429]
[1754582522740,1.198,775.84,775.38,0.85937429]
[1754582523438,1.198,775.84,775.37,0.85937429]
[1754582523644,1.198,775.84,775.38,0.85937429]
[1754582523937,1.198,775.84,775.36,0.85937429]
[1754582524938,1.198,775.84,775.31,0.85937429]
[1754582525143,1.198,775.84,775.32,0.85937429]
[1754582525341,1.198,775.84,775.31,0.85937429]
[1754582525745,1.198,775.84,775.32,0.85937429]
[1754582526440,1.198,775.84,775.31,0.85937429]
[1754582527243,1.198,775.84,775.3,0.85937429]
[1754582527746,1.198,775.84,775.31,0.85937429]
[1754582528041,1.198,775.84,775.32,0.85937429]
[1754582528345,1.181,775.83,775.31,0.85937429]
[1754582529340,1.181,775.83,775.02,1.144492]
[1754582529341,1.181,775.83,775.3,0.85937429]
[1754582531348,1.181,775.83,775.29,0.85937429]
[1754582531944,1.181,775.83,775.3,0.85937429]
[1754582532347,1.181,775.83,775.29,0.85937429]
[1754582532847,1.181,775.83,774.59,0.22431569]
[1754582532848,1.181,775.83,775.28,0.85937429]
[1754582533744,1.181,775.83,774.59,0.22431569]
[1754582533745,1.181,775.83,775.34,0.85937429]
[1754582534244,1.181,775.83,775.33,0.85937429]
[1754582535251,1.181,775.83,775.32,0.85937429]
[1754582538551,1.181,775.83,775.33,0.85937429]
[1754582539452,1.181,775.83,775.34,0.85937429]
[1754582539852,1.181,775.83,775.35,0.85937429]
[1754582540351,1.181,775.83,775.34,0.85937429]
[1754582540954,1.181,775.83,775.35,0.85937429]
[1754582541153,1.181,775.83,775.34,0.85937429]
[1754582541452,1.181,775.83,775.35,0.85937429]
[1754582542655,1.181,775.83,775.36,0.85937429]
[1754582543056,1.181,775.83,775.37,0.85937429]
[1754582543856,1.181,775.83,775.38,0.85937429]
[1754582544251,1.181,775.83,775.39,0.85937429]
[1754582545151,1.181,775.83,775.43,0.85937429]
[1754582545355,1.181,775.83,775.46,0.85937429]
[1754582545556,1.181,775.83,775.29,1.144492]
[1754582545557,1.181,775.83,775.47,0.85937429]
[1754582547253,1.181,775.83,775.46,0.85937429]
[1754582547556,1.181,775.83,775.47,0.85937429]
[1754582548056,1.181,775.83,775.5,0.85937429]
[1754582548352,1.181,775.83,775.45,0.85937429]
[1754582549056,1.181,775.83,775.44,0.85937429]
[1754582549258,1.181,775.83,775.41,0.85937429]
[1754582550152,1.181,775.83,775.38,0.85937429]
[1754582550358,1.181,775.83,775.36,0.85937429]
[1754582550557,1.181,775.83,775.34,0.85937429]
[1754582551455,1.181,775.83,775.25,0.85937429]
[1754582551661,1.181,775.83,775.13,0.85937429]
[1754582551860,1.297,775.82,775.11,0.85937429]
[1754582552058,1.297,775.82,775.07,0.85937429]
[1754582552961,1.297,775.82,775.08,0.85677655]
[1754582553555,1.297,775.82,775.09,0.85677655]
[1754582553954,1.297,775.82,774.59,0.22431569]
[1754582553955,1.297,775.82,775.08,0.85677655]
[1754582554359,1.297,775.82,775.09,0.85677655]
[1754582557559,1.297,775.82,775.1,0.85677655]
[1754582557961,1.297,775.82,775.08,0.85677655]
[1754582558361,1.297,775.82,775.09,0.85677655]
[1754582558761,1.297,775.82,775.07,0.85677655]
[1754582559262,1.297,775.82,775.08,0.85677655]
[1754582560659,0.917,775.81,775.08,0.85677655]
[1754582560860,0.917,775.81,775.11,0.85677655]
[1754582561863,0.917,775.81,775.15,0.85677655]
[1754582562265,0.85636186,775.8,775.15,0.85677655]
[1754582562463,0.85636186,775.79,775.15,0.85677655]
[1754582562763,0.85636186,775.78,775.15,0.85677655]
[1754582563064,0.85636186,775.77,775.15,0.85677655]
[1754582563263,0.917,775.81,775.15,0.85677655]
[1754582563463,0.85632485,775.8,775.15,0.85677655]
[1754582563663,0.85632485,775.79,775.15,0.85677655]
[1754582563963,0.85632485,775.78,775.15,0.85677655]
[1754582564267,0.917,775.81,775.14,0.85677655]
[1754582564463,0.85628603,775.8,775.14,0.85677655]
[1754582564665,0.85628603,775.79,775.14,0.85677655]
[1754582564863,0.85628603,775.78,775.14,0.85677655]
[1754582565064,0.917,775.81,775.14,0.85677655]
[1754582565268,0.85630192,775.8,775.14,0.85677655]
[1754582565468,0.85630192,775.79,775.12,0.85677655]
[1754582565669,0.85630192,775.78,775.12,0.85677655]
[1754582565866,0.917,775.81,775.12,0.85677655]
[1754582566065,0.85623337,775.8,775.12,0.85677655]
[1754582566366,0.85623337,775.79,775.11,0.85677655]
[1754582566570,0.85623337,775.78,775.11,0.85677655]
[1754582566868,0.917,775.81,775.11,0.85677655]
[1754582567067,0.85618149,775.8,775.07,0.85677655]
[1754582567269,0.85618149,775.79,775.07,0.85677655]
[1754582567470,0.85618149,775.78,775.07,0.85677655]
[1754582567667,0.917,775.81,775.07,0.85677655]
[1754582567865,0.8561304,775.8,775.07,0.85677655]
[1754582568068,0.8561304,775.79,775.07,0.85677655]
[1754582568268,0.8561304,775.78,775.07,0.85677655]
[1754582568467,0.917,775.81,775.07,0.85677655]
[1754582568666,0.85608305,775.8,775.06,0.85677655]
[1754582568866,0.85608305,775.79,775.06,0.85677655]
[1754582569066,0.85608305,775.78,775.07,0.85677655]
[1754582569270,0.85608305,775.78,774.91,1.144492]
[1754582569271,0.85608305,775.77,775.06,0.85677655]
[1754582569472,0.917,775.81,775.06,0.85677655]
[1754582569771,0.85602782,775.8,775.06,0.85677655]
[1754582569971,0.85602782,775.79,775.06,0.85677655]
[1754582570171,0.85602782,775.78,775.06,0.85677655]
[1754582570368,0.917,775.81,775.06,0.85677655]
[1754582570572,0.8559706,775.8,775.06,0.85677655]
[1754582570872,0.8559706,775.79,775.06,0.85677655]
[1754582571072,0.8559706,775.78,775.06,0.85677655]
[1754582571371,0.85588006,775.77,775.06,0.85677655]
[1754582571568,0.917,775.81,775.06,0.85677655]
[1754582571773,0.85588006,775.8,775.07,0.85677655]
[1754582571970,0.85588006,775.79,775.07,0.85677655]
[1754582572274,0.85588006,775.78,775.06,0.85677655]
[1754582572470,0.85588006,775.77,775.04,0.85677655]
[1754582572673,0.85580564,775.76,775.04,0.85677655]
[1754582572970,0.917,775.81,775.04,0.85677655]
[1754582573170,0.85580564,775.8,775.04,0.85677655]
[1754582573368,0.85580564,775.79,775.03,0.85677655]
[1754582573571,0.85580564,775.78,775.03,0.85677655]
[1754582573769,0.85580564,775.77,774.87,1.144492]
[1754582573972,0.85580564,775.76,774.99,0.85789147]
[1754582574171,0.85580564,775.75,774.99,0.85789147]
[1754582574370,0.85580564,775.74,774.98,0.85789147]
[1754582574572,0.85580564,775.73,774.98,0.85789147]
[1754582574769,0.85580564,775.72,774.96,0.85789147]
[1754582575075,0.85580564,775.71,774.95,0.85789147]
[1754582575274,0.85580564,775.7,774.95,0.85789147]
[1754582575474,0.917,775.81,774.94,0.85789147]
[1754582575673,1.28012806,775.8,774.94,0.85789147]
[1754582575876,0.85549186,775.79,774.94,0.85789147]
[1754582576079,0.85549186,775.78,774.94,0.85789147]
[1754582576273,0.85549186,775.77,774.94,0.85789147]
[1754582576472,0.85549186,775.76,774.94,0.85789147]
[1754582576674,0.85549186,775.75,774.94,0.85789147]
[1754582576876,0.85549186,775.74,774.94,0.85789147]
[1754582577176,0.85549186,775.73,774.94,0.85789147]
[1754582577373,0.85549186,775.72,774.94,0.85789147]
[1754582577573,0.85549186,775.71,774.94,0.85789147]
[1754582577773,1.297,775.82,774.94,0.85789147]
[1754582577977,1.27971017,775.81,774.94,0.85789147]
[1754582578173,0.85521267,775.8,774.94,0.85789147]
[1754582578373,0.85521267,775.79,774.93,0.85789147]
[1754582578574,0.85521267,775.78,774.93,0.85789147]
[1754582578776,0.85521267,775.77,774.93,0.85789147]
[1754582578972,0.85521267,775.76,774.93,0.85789147]
[1754582579276,1.89021267,775.75,774.92,0.85789147]
[1754582579474,0.85521267,775.74,774.93,0.85789147]
[1754582579772,0.85521267,775.73,774.93,0.85789147]
[1754582579976,0.85521267,775.72,774.93,0.85789147]
[1754582580171,0.85521267,775.71,774.93,0.85789147]
[1754582580373,0.85497317,775.7,774.93,0.85789147]
[1754582580670,1.035,775.75,774.93,0.85789147]
[1754582580871,0.85497317,775.74,774.93,0.85789147]
[1754582581072,0.85497317,775.73,774.93,0.85789147]
[1754582581277,0.85497317,775.72,774.93,0.85789147]
[1754582581471,0.85497317,775.71,774.93,0.85789147]
[1754582581674,1.035,775.75,774.91,0.85789147]
[1754582581873,1.035,775.75,774.88,0.85789147]
[1754582582675,1.035,775.75,774.87,0.85789147]
[1754582583079,1.035,775.75,774.88,0.85789147]
[1754582583882,1.035,775.75,774.93,0.85789147]
[1754582587577,1.035,775.75,774.94,0.85789147]
[1754582589383,1.035,775.75,774.95,0.85789147]
[1754582589679,1.035,775.75,774.96,0.85789147]
[1754582590583,1.035,775.75,774.98,0.85789147]
[1754582591079,1.245,775.74,774.98,0.85789147]
[1754582591283,1.245,775.74,775.01,0.85789147]
[1754582591585,1.245,775.74,775.02,0.85789147]
[1754582592584,1.245,775.74,775.01,0.85789147]
[1754582593384,1.245,775.74,775.02,0.85789147]
[1754582594085,1.245,775.74,775.01,0.85789147]
[1754582594385,1.245,775.74,775.02,0.85789147]
[1754582595182,1.245,775.74,775.03,0.85789147]
[1754582595986,1.245,775.74,774.97,0.85789147]
[1754582597084,0.85503693,775.73,774.98,0.85789147]
[1754582597384,1.245,775.74,774.98,0.85789147]
[1754582597585,1.245,775.74,774.97,0.85789147]
[1754582598485,1.245,775.74,774.98,0.85789147]
[1754582600286,1.245,775.74,774.99,0.85789147]
[1754582600684,1.245,775.74,775.0,0.85789147]
[1754582601189,1.245,775.74,775.01,0.85789147]
[1754582601989,1.245,775.74,775.04,0.85789147]
[1754582602189,1.245,775.74,775.06,0.85789147]
[1754582603085,1.245,775.74,775.08,0.85789147]
[1754582603484,1.245,775.74,775.09,0.85789147]
[1754582603884,1.245,775.74,775.1,0.85789147]
[1754582604088,1.245,775.74,775.09,0.85789147]
[1754582604289,1.245,775.74,775.1,0.85789147]
[1754582604586,1.245,775.74,775.09,0.85789147]
[1754582604987,1.245,775.74,775.1,0.85789147]
[1754582605392,1.245,775.74,775.11,0.85789147]
[1754582606288,1.245,775.74,775.13,0.85789147]
[1754582607291,1.245,775.74,775.15,0.85789147]
[1754582608292,1.245,775.74,775.17,0.85789147]
[1754582609391,1.245,775.74,775.19,0.85789147]
[1754582610294,1.245,775.74,775.21,0.85789147]
[1754582611293,1.245,775.74,775.23,0.85789147]
[1754582612291,1.245,775.74,775.25,0.85789147]
[1754582612795,1.245,775.74,775.3,0.85789147]
[1754582613091,1.245,775.74,774.59,0.22431569]
[1754582613092,1.245,775.74,775.32,0.85789147]
[1754582613391,1.245,775.74,775.31,0.85789147]
[1754582613589,1.245,775.74,775.32,0.85789147]
[1754582614092,1.245,775.74,775.34,0.85789147]
[1754582615693,1.245,775.74,775.35,0.85789147]
[1754582616298,1.245,775.74,775.34,0.85789147]
[1754582619202,1.245,775.74,774.59,0.22431569]
[1754582619203,1.245,775.74,775.33,0.85789147]
[1754582620198,1.245,775.74,775.31,0.85789147]
[1754582620702,1.245,775.74,775.3,0.85789147]
[1754582621103,1.245,775.74,775.29,0.85789147]
[1754582623805,0.839,775.73,775.29,0.85789147]
[1754582626506,1.341,775.72,775.29,0.85789147]
[1754582626702,1.341,775.72,775.21,0.85789147]
[1754582627201,1.341,775.72,775.22,0.85789147]
[1754582627706,1.341,775.72,775.21,0.85789147]
[1754582628312,1.341,775.72,775.23,0.85789147]
[1754582628706,1.341,775.72,775.22,0.85789147]
[1754582629007,1.341,775.72,775.23,0.85789147]
[1754582629203,1.341,775.72,775.24,0.85789147]
[1754582629408,1.341,775.72,775.23,0.85789147]
[1754582631005,1.341,775.72,775.24,0.85789147]
[1754582632110,1.341,775.72,775.27,0.85789147]
[1754582632307,1.341,775.72,775.24,0.85789147]
[1754582633511,1.341,775.72,775.25,0.85789147]
[1754582635410,1.341,775.72,775.26,0.85789147]
[1754582638614,1.341,775.72,775.27,0.85789147]
[1754582638815,1.341,775.72,775.22,0.85789147]
[1754582639217,1.341,775.72,775.23,0.85789147]
[1754582639715,1.154,775.71,775.23,0.85789147]
[1754582640213,1.154,775.71,775.22,0.85789147]
[1754582640611,1.154,775.71,775.03,1.144492]
[1754582640916,1.154,775.71,775.17,0.86069793]
[1754582641316,1.154,775.71,775.18,0.86069793]
[1754582641515,1.154,775.71,774.96,1.144492]
[1754582641516,1.154,775.71,775.17,0.86069793]
[1754582642019,1.154,775.71,775.16,0.86069793]
[1754582642218,1.154,775.71,775.14,0.86069793]
[1754582643125,1.154,775.71,775.15,0.86069793]
[1754582644430,1.154,775.71,775.16,0.86069793]
[1754582644621,1.154,775.71,775.17,0.86069793]
[1754582645623,1.154,775.71,775.16,0.86069793]
[1754582646125,1.154,775.71,775.17,0.86069793]
[1754582648930,1.154,775.71,775.18,0.86069793]
[1754582649125,1.154,775.71,775.16,0.86069793]
[1754582649329,1.154,775.71,775.21,0.86069793]
[1754582649825,1.154,775.71,775.24,0.86069793]
[1754582652527,1.154,775.71,775.25,0.86069793]
[1754582652731,0.881,775.7,775.25,0.86069793]
[1754582655031,0.881,775.7,775.26,0.86069793]
[1754582655235,0.881,775.7,775.27,0.86069793]
[1754582655936,0.881,775.7,775.26,0.86069793]
[1754582656135,0.881,775.7,775.27,0.86069793]
[1754582658032,0.881,775.7,775.26,0.86069793]
[1754582658332,0.881,775.7,775.27,0.86069793]
[1754582659438,0.881,775.7,775.28,0.86069793]
[1754582661140,0.881,775.7,775.3,0.86069793]
[1754582661441,0.881,775.7,775.31,0.86069793]
[1754582663843,0.881,775.7,775.29,0.86069793]
[1754582664045,0.881,775.7,775.3,0.86069793]
[1754582664841,0.881,775.7,775.35,0.86069793]
[1754582665046,0.881,775.7,775.27,0.86069793]
[1754582666342,0.881,775.7,775.28,0.86069793]
[1754582667346,0.881,775.7,775.27,0.86069793]
[1754582668451,0.881,775.7,775.28,0.86069793]
[1754582670248,0.881,775.7,775.29,0.86069793]
[1754582675057,0.881,775.7,774.89,0.22432871]
[1754582675058,0.881,775.7,775.35,0.86069793]
[1754582675556,0.881,775.7,775.36,0.86069793]
[1754582675853,1.154,775.71,775.36,0.86069793]